[Event "DVM U20w 2019"]
[Site "Braunschweig"]
[Date "2019.12.28"]
[Round "3"]
[White "Sherif, Amina"]
[Black "Visvikis, Kassandra"]
[Result "1-0"]
[ECO "D04"]
[WhiteElo "1945"]
[BlackElo "1568"]
[Annotator "NA RC"]
[PlyCount "83"]
[EventDate "2019.12.27"]
[EventType "team-tourn"]
[EventRounds "7"]
[EventCountry "GER"]
[SourceTitle "playchess.com"]
[Source "ChessBase"]
[SourceQuality "1"]
[WhiteTeam "TuRa Harksheide Norderstedt"]
[BlackTeam "OSG Baden-Baden"]
[TimeControl "40/5400+30:1800+30"]

1. d4 {[%emt 0:00:00]} d5 {[%emt 0:00:00]} 2. Nf3 Nf6 {[%emt 0:00:00]} 3. e3 {[%emt 0:00:00]} c5 {[%emt 0:00:28]} 4. Bd3 {[%emt 0:01:26]} Nc6 {[%emt 0:04:01]} 5. O-O {[%emt 0:03:54]} e6 {[%emt 0:02:49]} 6. b3 {[%emt 0:00:31]} Be7 {[%emt 0:01:08]} 7. Bb2 {[%emt 0:00:23]} O-O {[%emt 0:00:15]} 8. Nbd2 {[%emt 0:00:19] unterminated} a6 {[%emt 0:03:26] unterminated unterminated. D05: Colle System with ...e6} (8... b6 9. a3 Bb7 10. Qe2 Qc7 11. Rac1 Rac8 12. c4 dxc4 13. bxc4 cxd4 14. exd4 Rfe8 15. Rfe1 Qb8 16. Ne4 Na5 17. Neg5 Qf4 18. Nxe6 fxe6 19. Qxe6+ {0-1 (33) Mamedyarov,S (2808)-Nakamura,H (2769) Paris 2018}) 9. c4 {[%emt 0:20:22] unterminated} Rb8 {[%emt 0:12:11] unterminated} 10. Rc1 $146 {[%emt 0:03:00] unterminated} ({Predecessor:} 10. cxd5 exd5 11. dxc5 Bxc5 12. Bxf6 Qxf6 13. Bxh7+ Kxh7 14. Qc2+ Qg6 15. Qxc5 Bh3 16. Ne1 {1-0 (39) Kirsanova,E (2159)-Skytte,T (1948) Aarhus 2012}) 10... cxd4 {[%emt 0:04:53]} 11. exd4 {[%emt 0:00:29] unterminated} Bd7 {[%emt 0:13:45] unterminated} 12. Ne5 {[%emt 0:09:18] unterminated} dxc4 {[%emt 0:10:22] unterminated} 13. bxc4 {[%emt 0:02:15] unterminated} Qb6 {[%emt 0:02:57] unterminated} 14. Nxd7 {[%emt 0:09:52]} Nxd7 {[%emt 0:00:09] unterminated} 15. Rb1 {[%emt 0:05:49] unterminated} Qa5 {[%emt 0:03:38] unterminated} 16. a3 {[%emt 0:07:48]} Bf6 {[%emt 0:00:42] unterminated} 17. Nf3 {[%emt 0:09:14] unterminated} Rfd8 {[%emt 0:03:17] unterminated} 18. Qe2 {[%emt 0:01:46] unterminated} Nf8 {[%emt 0:09:07] unterminated} 19. Rfd1 {[%emt 0:01:57] unterminated} Qh5 {[%emt 0:01:19] unterminated} 20. d5 {[%emt 0:07:29]} exd5 {[%emt 0:03:23]} 21. Bxf6 {[%emt 0:00:38]} gxf6 {[%emt 0:00:10]} 22. cxd5 {[%emt 0:00:39]} Rxd5 {[%emt 0:00:41] unterminated} 23. Be4 {[%emt 0:02:26] unterminated} Rxd1+ {[%emt 0:01:54] unterminated} 24. Qxd1 {[%emt 0:02:32] unterminated} Qc5 {[%emt 0:05:40] unterminated} 25. Qb3 {[%emt 0:02:28] unterminated} Ne6 {[%emt 0:08:12]} 26. h3 {[%emt 0:01:00] unterminated} f5 {[%emt 0:01:55] unterminated} 27. Bd5 {[%emt 0:01:23] unterminated} Ncd8 {[%emt 0:01:44] unterminated} 28. Ne5 {[%emt 0:03:13]} Qc7 {[%emt 0:01:20] unterminated} 29. Qe3 $2 {[%emt 0:02:11]} ({White should play} 29. Qg3+ $18 Ng7 30. Nxf7 Qxg3 31. Nxd8+ Kf8 32. fxg3 Rxd8 33. Bxb7) 29... f4 {[%emt 0:03:16]} 30. Qe2 {[%emt 0:00:25]} Qe7 {[%emt 0:00:33]} 31. Re1 {[%emt 0:00:34]} Qf6 {[%emt 0:01:41]} 32. Nd7 Qd4 {[%emt 0:00:15]} 33. Bxe6 {[%emt 0:01:04]} Ra8 {[%emt 0:00:18]} 34. Qg4+ {[%emt 0:00:24] normal} Kh8 {[%emt 0:00:39]} 35. Bf5 {[%emt 0:00:40]} Nc6 {[%emt 0:00:45]} 36. Qh4 {[%emt 0:01:01]} Qg7 {[%emt 0:00:13]} 37. Nf6 {[%emt 0:00:32]} h6 {[%emt 0:00:05] normal} 38. Ng4 {[%emt 0:00:41]} Nd4 {[%emt 0:00:56]} 39. Qh5 {[%emt 0:01:06]} f3 {[%emt 0:00:50]} 40. Re7 {[%emt 0:00:18]} Nxf5 {[%emt 0:00:30] normal} 41. Qxf5 {[%emt 0:00:59] normal} fxg2 {[%emt 0:01:23]} 42. Rxf7 {[%emt 0:00:42] normal} 1-0

[Event "DVM U20w 2019"]
[Site "Braunschweig"]
[Date "2019.12.28"]
[Round "3"]
[White "Bashylina, Luisa"]
[Black "Rudolph, Eva"]
[Result "0-1"]
[ECO "B42"]
[WhiteElo "1935"]
[BlackElo "1711"]
[Annotator "NA RC"]
[PlyCount "74"]
[EventDate "2019.12.27"]
[EventType "team-tourn"]
[EventRounds "7"]
[EventCountry "GER"]
[SourceTitle "playchess.com"]
[Source "ChessBase"]
[SourceQuality "1"]
[WhiteTeam "SG Solingen"]
[BlackTeam "Düsseldorfer SK"]
[TimeControl "40/5400+30:1800+30"]

1. e4 {[%emt 0:00:00]} c5 {[%emt 0:00:00]} 2. Nf3 {[%emt 0:01:30]} e6 {[%emt 0:00:00]} 3. d4 {[%emt 0:00:04]} cxd4 {[%emt 0:00:00]} 4. Nxd4 {[%emt 0:00:03]} a6 {[%emt 0:00:07]} 5. Bd3 {[%emt 0:00:15]} Nf6 {[%emt 0:02:09]} 6. O-O {[%emt 0:00:06] unterminated} Qc7 {[%emt 0:00:22] unterminated} 7. Qe2 {[%emt 0:00:47] unterminated} d6 {[%emt 0:02:15] unterminated} 8. f4 {[%emt 0:01:35] unterminated} Nbd7 {[%emt 0:08:13] unterminated} 9. c4 {[%emt 0:05:22] unterminated} Be7 {[%emt 0:04:49]} 10. Nc3 {[%emt 0:00:55] unterminated} b6 {[%emt 0:02:58]} 11. Bd2 {[%emt 0:00:58] unterminated} Bb7 {[%emt 0:04:39] unterminated} 12. Rae1 {[%emt 0:01:39] unterminated} Nc5 {[%emt 0:11:41] unterminated} 13. Bc2 {[%emt 0:02:37] unterminated} O-O {[%emt 0:10:18] unterminated} 14. e5 {[%emt 0:05:23]} Ne8 $16 {[%emt 0:01:08]} 15. Bxh7+ {[%emt 0:06:44]} Kxh7 {[%emt 0:06:02]} 16. Qh5+ {[%emt 0:00:07]} Kg8 {[%emt 0:00:10]} 17. Re3 {[%emt 0:00:43]} dxe5 {[%emt 0:02:09]} 18. fxe5 {[%emt 0:03:52]} Rd8 {[%emt 0:05:24]} 19. Rf6 {[%emt 0:04:52]} Qxe5 {[%emt 0:23:48]} 20. Rxe5 {[%emt 0:02:31]} Bxf6 {[%emt 0:00:09]} 21. Re1 {[%emt 0:08:31]} Bxd4+ {[%emt 0:00:29]} 22. Be3 {[%emt 0:06:49]} Nd3 {[%emt 0:03:13]} 23. Re2 {[%emt 0:06:05]} Nf4 {[%emt 0:00:49]} 24. Qg4 {[%emt 0:02:00]} Nxe2+ {[%emt 0:00:38]} 25. Qxe2 {[%emt 0:00:05]} Nf6 {[%emt 0:00:35]} 26. h3 {[%emt 0:05:09]} Rd6 {[%emt 0:01:57]} 27. Bxd4 {[%emt 0:04:40]} Rxd4 {[%emt 0:00:09]} 28. g4 {[%emt 0:02:13]} Rfd8 {[%emt 0:01:31]} 29. g5 {[%emt 0:02:28]} Ne4 {[%emt 0:00:57]} 30. g6 {[%emt 0:00:46]} Nxc3 {[%emt 0:02:08]} 31. gxf7+ {[%emt 0:00:30]} Kf8 {[%emt 0:01:24]} 32. Qh5 {[%emt 0:01:37]} Rd1+ {[%emt 0:00:48]} 33. Kh2 Ne4 {[%emt 0:01:07]} 34. Qh8+ {[%emt 0:04:19]} Kxf7 {[%emt 0:00:08]} 35. Qh5+ {[%emt 0:00:11]} Kg8 {[%emt 0:00:12]} 36. h4 {normal} R8d2+ {[%emt 0:01:01]} 37. Kh3 {[%emt 0:00:11]} Rh1+ {[%emt 0:00:11] normal} 0-1

[Event "DVM U20w 2019"]
[Site "Braunschweig"]
[Date "2019.12.28"]
[Round "3"]
[White "Möller, Lisa-Marie"]
[Black "Muedder, Melanie"]
[Result "0-1"]
[ECO "B30"]
[WhiteElo "1934"]
[BlackElo "1902"]
[Annotator "NA"]
[PlyCount "97"]
[EventDate "2019.12.27"]
[EventType "team-tourn"]
[EventRounds "7"]
[EventCountry "GER"]
[SourceTitle "playchess.com"]
[Source "ChessBase"]
[SourceQuality "1"]
[WhiteTeam "Düsseldorfer SK"]
[BlackTeam "SG Solingen"]
[TimeControl "40/5400+30:1800+30"]

1. e4 {[%emt 0:00:00]} c5 {[%emt 0:00:00]} 2. Nf3 {[%emt 0:00:00]} Nc6 {[%emt 0:00:00]} 3. Bb5 {[%emt 0:00:00]} Nf6 {[%emt 0:00:52]} 4. Bxc6 {[%emt 0:00:00]} dxc6 {[%emt 0:00:07]} 5. d3 {[%emt 0:00:00] unterminated} Qc7 {[%emt 0:00:53]} (5... Nd7 6. e5 Nb6 7. Nbd2 Bf5 8. Qe2 e6 9. h3 Be7 10. Ne4 h6 11. O-O a5 12. Be3 Nd7 {½-½ (29) Amin,B (2684)-Rapport,R (2719) Abu Dhabi 2018}) 6. b3 {[%emt 0:00:03] B30: Sicilian: 2...Nc6 3 Bb5, lines without ...g6} Bg4 {[%emt 0:01:43] unterminated} 7. Bb2 {[%emt 0:01:01] unterminated} Nd7 {[%emt 0:03:41] unterminated} 8. Nbd2 {[%emt 0:02:26] unterminated} e5 {[%emt 0:00:50] unterminated} 9. h3 {[%emt 0:02:12] unterminated} Bh5 {[%emt 0:00:48] unterminated} 10. g4 {[%emt 0:02:23]} Bg6 {[%emt 0:00:14] unterminated} 11. Nc4 $146 {[%emt 0:00:42] unterminated} ({Predecessor:} 11. Nh4 O-O-O 12. Nxg6 hxg6 {½-½ (47) Velicka,P (2435)-Roubalik,J (2400) Czech Republic 2017}) 11... f6 {[%emt 0:01:00] unterminated} 12. Qe2 {[%emt 0:06:43] unterminated} Bf7 {[%emt 0:06:41] unterminated} 13. Ne3 {[%emt 0:04:25] unterminated} Qa5+ {[%emt 0:06:30] unterminated} 14. Qd2 {[%emt 0:02:17] unterminated} Qc7 {[%emt 0:03:17] unterminated} 15. Bc3 {[%emt 0:06:53] unterminated} b6 {[%emt 0:05:25] unterminated} 16. a4 {[%emt 0:05:44] unterminated} a6 {[%emt 0:12:29] unterminated} 17. Rg1 {[%emt 0:11:49] unterminated} O-O-O {[%emt 0:11:18] unterminated} 18. b4 {[%emt 0:05:55] unterminated} cxb4 {[%emt 0:04:18]} 19. Bxb4 {[%emt 0:00:34] unterminated} Nc5 {[%emt 0:01:56] unterminated} 20. Bxc5 {[%emt 0:03:16]} Bxc5 {[%emt 0:00:08]} 21. Rb1 {[%emt 0:01:26] unterminated} a5 {[%emt 0:05:08] unterminated} 22. Qc1 {[%emt 0:01:56] unterminated} Rd7 {[%emt 0:09:34] unterminated} 23. Qb2 {[%emt 0:01:58] unterminated} Rhd8 {[%emt 0:04:48] unterminated} 24. Ke2 {[%emt 0:07:49] unterminated} Bb4 {[%emt 0:08:05] unterminated} 25. Nd2 {[%emt 0:04:04] unterminated} Rd4 {[%emt 0:06:31] unterminated} 26. Nf5 {[%emt 0:07:18]} R4d7 {[%emt 0:01:09] unterminated} 27. Rgd1 {[%emt 0:04:20] unterminated} g6 {[%emt 0:00:51]} 28. Ne3 {[%emt 0:00:14] unterminated} h5 {[%emt 0:01:25] unterminated} 29. Ndc4 {[%emt 0:03:33] unterminated} b5 {[%emt 0:01:27]} 30. axb5 {[%emt 0:00:37] unterminated} cxb5 {[%emt 0:00:13] unterminated} 31. Na3 {[%emt 0:03:23] unterminated} Qc5 {[%emt 0:02:01] unterminated} 32. Ra1 {[%emt 0:07:07]} (32. gxh5 $17 g5 33. h6) 32... Bc3 {[%emt 0:00:32]} 33. Qxb5 {[%emt 0:00:09]} Qxb5 {[%emt 0:00:11]} 34. Nxb5 {[%emt 0:00:04] unterminated} Bxa1 {[%emt 0:00:11]} 35. Rxa1 {[%emt 0:00:02] unterminated [#] unterminated} hxg4 {[%emt 0:00:37]} ({Better is} 35... Kb7 $1 $17) 36. Nxg4 {[%emt 0:00:19]} f5 {[%emt 0:01:18] unterminated} (36... Be6 $11) 37. Nxe5 {[%emt 0:00:33] unterminated} Rb7 {[%emt 0:01:30] unterminated} 38. Nxf7 {[%emt 0:03:35]} Rxf7 {[%emt 0:00:13] unterminated} 39. Rxa5 {[%emt 0:01:01]} fxe4 {[%emt 0:00:38] unterminated} 40. dxe4 {[%emt 0:01:54]} Rfd7 {[%emt 0:00:53]} 41. Ra8+ {[%emt 0:31:58]} Kb7 {[%emt 0:30:30]} 42. Rxd8 {[%emt 0:00:15]} Rxd8 {[%emt 0:00:05] unterminated} 43. Kf3 {[%emt 0:00:00] unterminated} Kc6 {[%emt 0:00:00] unterminated} 44. Nc3 {[%emt 0:00:00]} Kd6 {[%emt 0:00:00] unterminated} 45. Nd5 {[%emt 0:00:00]} Ke5 {[%emt 0:00:00] unterminated} 46. Ne7 {[%emt 0:00:00] unterminated} Kf6 {[%emt 0:00:00] unterminated} 47. Nd5+ {[%emt 0:00:00]} Ke5 {[%emt 0:00:00]} 48. c3 {[%emt 0:00:00] unterminated} Rh8 {[%emt 0:00:00]} 49. Nf4 {[%emt 0:00:00] normal} (49. Kg4 $11) 0-1

[Event "DVM U20w 2019"]
[Site "Braunschweig"]
[Date "2019.12.28"]
[Round "3"]
[White "Brunner, Sophia"]
[Black "Schumann, Rabea"]
[Result "0-1"]
[ECO "D93"]
[WhiteElo "1852"]
[BlackElo "1873"]
[Annotator "NA RC"]
[PlyCount "94"]
[EventDate "2019.12.27"]
[EventType "team-tourn"]
[EventRounds "7"]
[EventCountry "GER"]
[SourceTitle "playchess.com"]
[Source "ChessBase"]
[SourceQuality "1"]
[WhiteTeam "SK Nordhorn-Blanke"]
[BlackTeam "SG Güstrow/Teterow"]
[TimeControl "40/5400+30:1800+30"]

1. d4 {[%emt 0:00:00]} Nf6 {[%emt 0:00:00]} 2. Nf3 {[%emt 0:00:00]} g6 {[%emt 0:00:00]} 3. c4 {[%emt 0:00:00]} Bg7 {[%emt 0:00:19]} 4. Nc3 {[%emt 0:00:00]} d5 {[%emt 0:00:24]} 5. Bf4 {[%emt 0:00:12] unterminated} O-O {[%emt 0:12:33] unterminated} 6. e3 {[%emt 0:00:33] unterminated} c6 {[%emt 0:03:52] unterminated} 7. h3 {[%emt 0:00:49] unterminated} Nbd7 {[%emt 0:01:28]} 8. Rc1 {[%emt 0:01:30] unterminated} Qa5 {[%emt 0:04:02] unterminated unterminated. D93: Grünfeld: 4 Nf3 Bg7 5 Bf4 0-0 6 e3} 9. Qd2 {[%emt 0:08:50] unterminated} Re8 {[%emt 0:03:48] unterminated} ({Black should play} 9... dxc4 $14 10. Bxc4 b5 (10... Nh5 11. Bh2 e5 12. O-O Nb6 13. Bb3 exd4 14. exd4 Be6 15. Bxe6 fxe6 16. Rfe1 {½-½ (29) Erdos,V (2523)-Ftacnik,L (2567) Sibenik 2007})) 10. Be2 {[%emt 0:11:03] unterminated} dxc4 {[%emt 0:05:04] unterminated} 11. Bxc4 {[%emt 0:02:33] unterminated} Nb6 {[%emt 0:01:59] unterminated} 12. Bb3 {[%emt 0:01:19] unterminated} Nbd5 $146 {[%emt 0:02:16] unterminated} ({Predecessor:} 12... Nfd5 13. Bh2 Nxc3 14. bxc3 Nd5 {1-0 (37) Jelfs,A-Gillespie,D (1906) Glasgow 2003}) 13. Nxd5 {[%emt 0:06:41]} Qxd2+ {[%emt 0:00:21]} 14. Kxd2 {[%emt 0:01:05] unterminated} Nxd5 {[%emt 0:01:19] unterminated} 15. Bxd5 {[%emt 0:01:21]} cxd5 {[%emt 0:00:08]} 16. Rc5 {[%emt 0:00:46] unterminated} e6 {[%emt 0:03:59] unterminated} 17. Be5 {[%emt 0:03:42] unterminated} Bf8 {[%emt 0:03:29] unterminated} 18. Rc7 {[%emt 0:02:09] unterminated} Bb4+ {[%emt 0:02:37] unterminated} 19. Kc1 {[%emt 0:10:05] unterminated} Ba5 {[%emt 0:04:52] unterminated} 20. Rc2 {[%emt 0:00:51] unterminated} Bd7 {[%emt 0:02:23] unterminated} 21. Nd2 {[%emt 0:11:17] unterminated} Rac8 {[%emt 0:03:09] unterminated} 22. Nb3 {[%emt 0:01:38] unterminated} Rxc2+ {[%emt 0:00:43]} 23. Kxc2 {[%emt 0:00:04] unterminated} Rc8+ {[%emt 0:03:06]} 24. Kb1 {[%emt 0:00:23] unterminated} Bb6 {[%emt 0:01:06] unterminated} 25. Rc1 {[%emt 0:02:03] unterminated} Rxc1+ {[%emt 0:00:41]} 26. Kxc1 {[%emt 0:00:17] unterminated} Bb5 {[%emt 0:01:05] unterminated} 27. h4 {[%emt 0:04:28] unterminated} Bc4 {[%emt 0:01:56] unterminated} 28. Kc2 {[%emt 0:08:06] unterminated} Bxb3+ {[%emt 0:01:41] unterminated} 29. Kxb3 {[%emt 0:04:11] unterminated} Kf8 {[%emt 0:03:08]} 30. Kc3 {[%emt 0:05:57]} Ke7 {[%emt 0:01:29]} 31. b4 {[%emt 0:01:43]} a6 {[%emt 0:01:07]} 32. a4 {[%emt 0:00:14]} Bd8 {[%emt 0:03:58]} 33. Bf4 {[%emt 0:09:42]} Kd7 {[%emt 0:00:55]} 34. g3 {[%emt 0:00:31]} b5 {[%emt 0:01:35]} 35. axb5 {[%emt 0:00:43]} axb5 {[%emt 0:00:09]} 36. f3 {[%emt 0:01:53]} h5 {[%emt 0:02:39]} 37. Kb3 {[%emt 0:00:32]} f6 {[%emt 0:02:39]} 38. g4 {[%emt 0:01:03]} e5 {[%emt 0:06:54]} 39. dxe5 {[%emt 0:00:35]} fxe5 {[%emt 0:00:06]} 40. Bg3 {[%emt 0:00:31]} e4 {[%emt 0:01:58] normal} 41. fxe4 {[%emt 0:11:40]} dxe4 {[%emt 0:00:07] normal} 42. g5 {[%emt 0:00:55]} Bb6 {[%emt 0:01:25] normal} 43. Bf2 {[%emt 0:00:54] normal} Ke6 {[%emt 0:02:15]} 44. Kc3 {[%emt 0:00:24] normal} Kf5 {[%emt 0:01:04]} 45. Kd2 {normal} Kg4 {[%emt 0:00:27] normal} 46. Ke2 {[%emt 0:00:14]} Bc7 {[%emt 0:00:21]} 47. Be1 {[%emt 0:00:50] normal} Bd6 {[%emt 0:00:47] normal} 0-1

[Event "DVM U20w 2019"]
[Site "Braunschweig"]
[Date "2019.12.28"]
[Round "3"]
[White "Peglau, Sarah"]
[Black "Hartmann, Cora"]
[Result "1-0"]
[ECO "D10"]
[WhiteElo "1760"]
[BlackElo "1842"]
[Annotator "NA RC"]
[PlyCount "97"]
[EventDate "2019.12.27"]
[EventType "team-tourn"]
[EventRounds "7"]
[EventCountry "GER"]
[SourceTitle "playchess.com"]
[Source "ChessBase"]
[SourceQuality "1"]
[WhiteTeam "Schachzentrum Seeblick"]
[BlackTeam "SC Borussia Lichtenberg"]
[TimeControl "40/5400+30:1800+30"]

1. c4 {[%emt 0:00:00]} c6 {[%emt 0:00:00]} 2. d4 {[%emt 0:00:00]} d5 {[%emt 0:00:00] unterminated} 3. cxd5 {[%emt 0:00:23]} cxd5 {[%emt 0:00:00]} 4. Nc3 {[%emt 0:00:43] unterminated} Nc6 {[%emt 0:00:38]} 5. Nf3 {[%emt 0:00:42]} Nf6 {[%emt 0:00:27] unterminated} 6. Bf4 {[%emt 0:08:14] unterminated} Qb6 {[%emt 0:11:14] unterminated} 7. Na4 {[%emt 0:05:25] unterminated} Qa5+ {[%emt 0:02:14] unterminated unterminated. D13: Slav Defence: Exchange variation without ...Bf5} 8. Bd2 {[%emt 0:03:15] unterminated} Qc7 {[%emt 0:03:06] unterminated} (8... Qd8 9. e3 e6 10. Bb5 Bd7 11. O-O Ne4 12. Rc1 Rc8 13. Nc5 Bxc5 14. dxc5 Nxd2 15. Qxd2 O-O 16. b4 Qe7 17. Be2 a6 {1-0 (80) Hungaski,R (2511)-Molina,R (2453) Buenos Aires 2017}) 9. Rc1 {[%emt 0:02:30] unterminated} e6 {[%emt 0:04:31] unterminated} 10. Ne5 {[%emt 0:07:17] unterminated} Bd7 {[%emt 0:09:51] unterminated} 11. e3 {[%emt 0:07:40] unterminated} a6 $146 {[%emt 0:08:00] unterminated} ({Predecessor:} 11... Bd6 12. f4 Ne4 13. Bd3 Nxd2 14. Qxd2 Qa5 15. Nc5 Qxd2+ 16. Kxd2 Bxc5 17. Rxc5 {½-½ (40) Petrova,D-Shimanova,O (1870) Rybinsk 2008}) 12. Qb3 {[%emt 0:06:44] unterminated} Bd6 {[%emt 0:17:40] unterminated} 13. Nb6 {[%emt 0:02:35] unterminated} Rb8 {[%emt 0:07:59] unterminated} 14. Nbxd7 {[%emt 0:04:14]} Nxd7 {[%emt 0:00:02] unterminated} 15. Nxc6 {[%emt 0:00:30]} bxc6 {[%emt 0:00:01]} 16. Qc2 {[%emt 0:01:44] unterminated} c5 {[%emt 0:03:24] unterminated} 17. dxc5 {[%emt 0:02:05] unterminated} Qxc5 {[%emt 0:02:53] unterminated} 18. Qa4 {[%emt 0:16:18] unterminated} Qa7 {[%emt 0:03:58] unterminated} 19. Rc6 {[%emt 0:02:47] unterminated} Ke7 {[%emt 0:03:51] unterminated} 20. Rxa6 {[%emt 0:03:20]} Qc5 {[%emt 0:02:55]} 21. Rc6 {[%emt 0:02:00]} Rb4 {[%emt 0:06:10]} 22. Bxb4 {[%emt 0:02:40]} Qxb4+ {[%emt 0:00:02]} 23. Qxb4 {[%emt 0:00:02]} Bxb4+ {[%emt 0:00:05]} 24. Kd1 {[%emt 0:00:33] unterminated} Ne5 {[%emt 0:00:31] unterminated} 25. Rb6 {[%emt 0:02:46]} Ng4 {[%emt 0:00:30] unterminated} 26. Ke2 {[%emt 0:05:31]} Bd6 {[%emt 0:00:13]} 27. h3 {[%emt 0:00:28] unterminated} Ne5 {[%emt 0:00:55] unterminated} 28. Kd2 {[%emt 0:01:17] unterminated} Ra8 {[%emt 0:00:56] unterminated} 29. a3 {[%emt 0:01:15]} Bc7 {[%emt 0:00:59] unterminated} 30. Rb7 {[%emt 0:00:54]} Kd6 {[%emt 0:00:02] unterminated} 31. Bb5 {[%emt 0:02:22]} Ba5+ {[%emt 0:00:48] unterminated} 32. b4 {[%emt 0:01:19]} Bd8 {[%emt 0:00:10] unterminated} 33. f4 {[%emt 0:03:06] unterminated} Nc4+ {[%emt 0:00:19]} 34. Ke2 {[%emt 0:00:33]} e5 {[%emt 0:01:37] unterminated} 35. f5 {[%emt 0:04:09]} e4 {[%emt 0:02:07]} 36. Rd7+ {[%emt 0:01:09]} Ke5 {[%emt 0:00:03]} 37. Bxc4 {[%emt 0:00:28]} dxc4 {[%emt 0:00:02]} 38. Rhd1 {[%emt 0:00:38]} Bg5 {[%emt 0:00:59]} 39. R1d5+ {[%emt 0:00:14]} Kf6 {[%emt 0:00:03]} 40. R5d6+ {[%emt 0:01:09]} Ke5 {[%emt 0:00:11]} 41. Rd5+ {[%emt 0:02:50]} Kf6 {[%emt 0:00:14]} 42. Ra5 {[%emt 0:01:20]} Rc8 {[%emt 0:00:56]} 43. a4 {[%emt 0:04:42]} c3 {[%emt 0:00:49]} 44. Rc5 {[%emt 0:00:23]} Rxc5 {[%emt 0:00:45]} 45. bxc5 {[%emt 0:00:02]} c2 {[%emt 0:00:11]} 46. Kd2 {[%emt 0:00:16]} Bxe3+ {[%emt 0:00:31]} 47. Kxc2 {[%emt 0:00:10]} Bxc5 {[%emt 0:00:08]} 48. g4 {[%emt 0:00:28] normal} Bb4 $18 {[%emt 0:01:43] normal} 49. Rd4 {[%emt 0:00:23] normal} 1-0

[Event "DVM U20w 2019"]
[Site "Braunschweig"]
[Date "2019.12.28"]
[Round "3"]
[White "Meijerink, Inken"]
[Black "Puls, Luisa"]
[Result "1-0"]
[ECO "B76"]
[WhiteElo "1743"]
[BlackElo "1551"]
[Annotator "NA RC"]
[PlyCount "53"]
[EventDate "2019.12.27"]
[EventType "team-tourn"]
[EventRounds "7"]
[EventCountry "GER"]
[SourceTitle "playchess.com"]
[Source "ChessBase"]
[SourceQuality "1"]
[WhiteTeam "SK Nordhorn-Blanke"]
[BlackTeam "SG Güstrow/Teterow"]
[TimeControl "40/5400+30:1800+30"]

1. e4 c5 2. Nf3 d6 3. d4 cxd4 4. Nxd4 Nf6 5. Nc3 g6 6. f3 Bg7 7. Be3 O-O 8. Qd2 Nc6 9. g4 e6 10. h4 h5 11. gxh5 Nxh5 12. Nde2 Ne5 13. Nd4 b6 14. Be2 Nf6 15. Bg5 Bb7 16. h5 Qd7 17. h6 Bh8 18. Bb5 Qc7 19. h7+ Nxh7 20. Qh2 f6 21. Bf4 Qe7 22. Bxe5 dxe5 23. Nxe6 Rf7 24. Bc4 Bc8 25. Ng5 Kf8 26. Nxf7 Be6 27. Qxh7 {normal} 1-0

[Event "DVM U20w 2019"]
[Site "Braunschweig"]
[Date "2019.12.28"]
[Round "3"]
[White "Sereda, Yaroslava"]
[Black "Cerkez, Lorena"]
[Result "1-0"]
[ECO "C05"]
[WhiteElo "1726"]
[BlackElo "1000"]
[Annotator "NA RC"]
[PlyCount "47"]
[EventDate "2019.12.27"]
[EventType "team-tourn"]
[EventRounds "7"]
[EventCountry "GER"]
[SourceTitle "playchess.com"]
[Source "ChessBase"]
[SourceQuality "1"]
[WhiteTeam "SG Solingen"]
[BlackTeam "Düsseldorfer SK"]
[TimeControl "40/5400+30:1800+30"]

1. e4 {[%emt 0:00:00]} e6 {[%emt 0:00:00]} 2. d4 {[%emt 0:00:00]} d5 {[%emt 0:00:00]} 3. Nd2 {[%emt 0:00:00]} Nf6 {[%emt 0:00:13]} 4. e5 {[%emt 0:00:32]} Nfd7 {[%emt 0:00:17]} 5. Bd3 {[%emt 0:00:44]} c5 {[%emt 0:00:13]} 6. c3 {[%emt 0:00:22]} Nc6 {[%emt 0:00:49]} 7. Ne2 {[%emt 0:01:29]} Be7 {[%emt 0:10:58]} 8. O-O {[%emt 0:02:32]} h6 {[%emt 0:05:58]} 9. Nf3 {[%emt 0:03:07]} Ndb8 {[%emt 0:27:42]} 10. Be3 {[%emt 0:11:27]} a6 {[%emt 0:10:56]} 11. Rc1 {[%emt 0:04:05]} b5 {[%emt 0:00:54]} 12. Bb1 {[%emt 0:08:44]} Nd7 {[%emt 0:01:55]} 13. Qd2 {[%emt 0:03:57]} Rb8 {[%emt 0:02:10]} 14. Ng3 {[%emt 0:07:50]} a5 {[%emt 0:12:06]} 15. Nh5 {[%emt 0:04:26]} Kf8 {[%emt 0:01:48]} 16. h3 {[%emt 0:04:15]} Ba6 {[%emt 0:03:37]} 17. Nh2 {[%emt 0:05:47]} b4 {[%emt 0:02:23]} 18. Bd3 {[%emt 0:01:05]} Bxd3 {[%emt 0:00:16]} 19. Qxd3 {[%emt 0:00:16]} Bg5 {[%emt 0:00:39]} 20. f4 {[%emt 0:09:21]} Be7 {[%emt 0:00:49]} 21. f5 {[%emt 0:00:29] normal} Kg8 {[%emt 0:04:13]} 22. fxe6 {[%emt 0:01:14]} fxe6 {[%emt 0:00:21] normal} 23. Qg6 {[%emt 0:00:31]} Bf8 {[%emt 0:00:31] normal} 24. Ng4 {[%emt 0:07:02] normal} 1-0